Cogmind - Beta 13 @@@ ROGUE MODE // 2024.03.12 @ 20:51:25 Player: Cmdr.Laserstrahl Result: Destroyed by G-47 Trooper with Particle Gun Performance ------------- Evolutions (3) 1500 Regions Visited (7) 1400 Robots Destroyed (149) 745 Value Destroyed (3280) 3280 Prototype IDs (9) 180 Alien Tech Used (0) 0 Bonus (1388) 1388 TOTAL SCORE: 8493 Bonus ------- High Alert Combat Kills 430 Follower Combat Kills 1095 Friendly Fire -137 Cogmind --------- Core Integrity 0/700 Matter 262/300 Energy 137/160 System Corruption 0% Temperature Cool (9) Movement Treading (225) Ox1 Location -7/Factory Parts ------- > --- POWER (1) -------- Light Nuclear Core > --- PROPULSION (2) --- Advanced Treads Advanced Treads > --- UTILITY (8) ------ Improved Heat Sink Improved Heat Sink Disposable Heat Sink Large Storage Unit Signal Interpreter Improved Targeting Computer Layered Light Armor Plating Layered Light Armor Plating > --- WEAPON (2) ------- Plasma Cannon Gauss Rifle > --- INVENTORY (15) --- Heavy Ion Engine Improved Heavy Armor Plating System Restoration Module Particle Gun Particle Gun Improved Medium Laser High-powered Field Laser Gauss Rifle Advanced Assault Cannon Advanced Assault Cannon Rocket Launcher Plasma Cutter Katana Ripper Peak State ------------ > --- POWER ------------ Antimatter Reactor > --- PROPULSION ------- Heavy Treads > --- UTILITY ---------- Improved Heat Sink Disposable Heat Sink Large Storage Unit Signal Interpreter Improved Targeting Computer Improved Targeting Computer Improved Light Armor Plating Improved Light Armor Plating > --- WEAPON ----------- High-powered Field Laser Long-range Proton Cannon > --- INVENTORY -------- Heavy Ion Engine Advanced Treads Advanced Treads Hardened Light Armor Plating System Restoration Module Improved Medium Laser Advanced Beam Cannon Heavy Assault Rifle Heavy Assault Rifle Improved Assault Rifle Improved Assault Rifle Advanced Assault Cannon Advanced Assault Cannon Rocket Launcher Plasma Cutter [Rating: 51] Favorites ----------- Power Heavy Ion Engine Engine Heavy Ion Engine Power Core Light Nuclear Core Reactor Antimatter Reactor Propulsion Light Treads Treads Light Treads Leg Aluminum Leg Hover Unit Hover Unit Utility Signal Interpreter Device Disposable Heat Sink Storage Large Storage Unit Processor Signal Interpreter Hackware Authchip [Armor] Protection Insulated Plating Weapon Improved Assault Rifle Energy Gun High-powered Field Laser Energy Cannon Beam Cannon Ballistic Gun Improved Assault Rifle Launcher Rocket Launcher Special Weapon Plasma Cutter Slashing Weapon Katana Build | -11 -10 -9 -9 -9 -7 -7 -7 ------- Run | Yrd Mat Mat Sto Rec Fac Was Fac Slots Evolved 6 | . . 2 . . 4 . . Power . | . . . . . . . . Propulsion . | . . . . . . . . Utility 6 | . . 2 . . 4 . . Weapon . | . . . . . . . . Parts Attached 123 | 7 15 18 27 3 24 6 23 Power 13 | 2 2 4 1 . . 1 3 Engine 10 | 2 2 4 1 . . . 1 Core 2 | . . . . . . . 2 Reactor 1 | . . . . . . 1 . Propulsion 28 | 2 2 6 7 2 5 1 3 Treads 24 | 2 . 4 7 2 5 1 3 Leg 2 | . . 2 . . . . . Wheel . | . . . . . . . . Hover 2 | . 2 . . . . . . Flight . | . . . . . . . . Utility 44 | 1 7 4 4 1 15 1 11 Device 18 | . 6 1 1 . 4 1 5 Storage 3 | 1 . 1 1 . . . . Processor 3 | . 1 . . . 2 . . Hackware 1 | . . . . . 1 . . Protection 19 | . . 2 2 1 8 . 6 Artifact . | . . . . . . . . Weapon 38 | 2 4 4 15 . 4 3 6 Energy Gun 6 | 1 . . 2 . 1 2 . Energy Cannon 7 | . 1 2 1 . 1 1 1 Ballistic Gun 16 | 1 3 2 7 . 1 . 2 Ballistic Cannon . | . . . . . . . . Launcher 2 | . . . . . 1 . 1 Special Weapon 5 | . . . 5 . . . . Impact Weapon . | . . . . . . . . Slashing Weapon 2 | . . . . . . . 2 Piercing Weapon . | . . . . . . . . Special Melee Weapon . | . . . . . . . . Unidentified Prototypes 6 | . . 2 3 . 1 . . Corrupted Parts 1 | . . . . . 1 . . System Corruption 2 | . . . . . 2 . . Parts Lost 13 | . 1 1 1 . 4 . 6 Power 2 | . 1 . . . . . 1 Propulsion 2 | . . 1 . . . . 1 Utility 8 | . . . 1 . 4 . 3 Weapon 1 | . . . . . . . 1 Highest Loss Streak 6 | . 1 1 1 . 2 . 6 To Critical Strikes . | . . . . . . . . Average Slot Usage (%) 96 | . 98 98 99 100 98 95 91 Engine 6 | . 13 11 11 11 7 2 . Reactor 1 | . . . . . . 4 5 Treads 14 | . 9 19 18 22 14 10 8 Hover 1 | . 18 1 . . . . . Device 13 | . 22 12 11 11 14 15 14 Storage 8 | . 3 9 11 11 7 7 7 Processor 15 | . . 11 11 11 23 23 21 Protection 11 | . . 11 11 11 13 15 14 Energy Gun 5 | . 8 . . . 6 11 11 Energy Cannon 2 | . 3 10 4 . 1 2 . Ballistic Gun 9 | . 15 11 15 22 5 . 2 Naked Turns . | . . . . . . . . Heaviest Build 58 | 13 14 23 39 38 46 52 58 Greatest Support 70 | 40 40 40 43 43 50 70 70 Greatest Overweight (x) 11 | . 1 7 11 . 1 1 . Average Overweight (x) . | . . . . . . . . Largest Inventory Capacity 15 | 8 8 8 15 15 15 15 15 Average Capacity 12 | 7 5 7 10 15 15 15 15 Most Carried 15 | 5 5 8 15 15 15 15 15 Average Carried 11 | 2 4 7 9 14 14 14 14 Final Capacity 15 | 8 5 8 15 15 15 15 15 Final Carried 15 | 2 5 8 15 15 14 15 15 Class Distribution -------------------- 51% | Mutant 48% | Scavenger-Mutant Dominant Class ---------------- Mutant | -10/Materials Scavenger-Mutant | -9/Materials Mutant | -9/Storage Mutant | -9/Recycling Mutant | -7/Factory Scavenger-Mutant | -7/Waste Scavenger-Mutant | -7/Factory Resources | -11 -10 -9 -9 -9 -7 -7 -7 ----------- Run | Yrd Mat Mat Sto Rec Fac Was Fac Matter Collected 2669 | 279 280 257 676 441 404 . 332 Remotely . | . . . . . . . . Salvage Created 6679 | 97 462 650 2042 1015 1081 . 1332 Parts 321 | 2 27 37 98 35 71 . 51 Haulers Intercepted 9 | . 2 3 3 . . . 1 Recyclers Shooed 24 | . . 1 8 11 1 . 3 Parts Field Recycled . | . . . . . . . . Retrieved Matter . | . . . . . . . . Parts Self-Destructed . | . . . . . . . . Prevented . | . . . . . . . . Kills | -11 -10 -9 -9 -9 -7 -7 -7 ------- Run | Yrd Mat Mat Sto Rec Fac Was Fac Combat Hostiles Destroyed 77 | . 7 9 25 3 17 . 16 Melee 4 | . . . . . . . 4 Guns 49 | . 7 2 17 3 12 . 8 Cannons 17 | . . 7 8 . 2 . . AOE 6 | . . . . . 3 . 3 Classes Destroyed 11 | 1 5 1 1 . 1 . 2 Worker 10 | . 2 . 3 . 4 . 1 Builder 7 | . . . 1 1 4 . 1 Hauler 9 | . 2 3 3 . . . 1 Recycler 41 | 1 1 4 10 12 6 . 7 Watcher 5 | . 1 1 2 . . . 1 Swarmer 20 | . 3 6 3 . 6 . 2 Grunt 38 | . 4 2 15 . 6 . 11 Duelist 2 | . . . . . . . 2 Sentry 13 | . . 1 7 3 2 . . Hunter 1 | . . . . . . . 1 Programmer 3 | . . . . . 3 . . Best Kill Streak 12 | 1 4 8 6 4 12 . 4 Combat Bots Only 7 | . 3 3 5 2 7 . 4 Max Kills in Single Turn 3 | 1 1 1 2 1 3 . 3 Gunslinging 1 | . . . 1 . . . . Exploded 3 | . . . . . 2 . 3 Melee 1 | . . . . . . . 1 Uniques/NPCs Destroyed . | . . . . . . . . Combat | -11 -10 -9 -9 -9 -7 -7 -7 -------- Run | Yrd Mat Mat Sto Rec Fac Was Fac Hostile Shots Fired 475 | . 73 41 79 20 132 . 130 Missed 122 | . 23 4 23 5 39 . 28 Damage Taken 5454 | . 604 356 696 213 1271 . 2314 Core 1052 | . 143 66 128 . 83 . 632 Absorbed by Shields . | . . . . . . . . Ignored by Resistances 12 | . . . . . 12 . . Regen/Repaired (Parts) 390 | . . . 78 . . 72 240 Core Remaining (%) 64 | 100 42 . . 51 . . . Volleys Fired 358 | 3 52 31 109 49 57 . 57 Largest 2 | 2 2 2 2 2 2 . 2 Hottest 140 | 60 80 83 91 46 126 . 140 Shots Fired 702 | 6 103 62 210 98 109 . 114 Gun 573 | 6 93 31 150 98 84 . 111 Cannon 108 | . 10 31 46 . 19 . 2 Launcher 7 | . . . . . 6 . 1 Special 14 | . . . 14 . . . . Kinetic 390 | 3 55 31 150 98 32 . 21 Thermal 286 | 3 48 31 60 . 52 . 92 Explosive 7 | . . . . . 6 . 1 Electromagnetic 19 | . . . . . 19 . . Robot Hit Streak 22 | 5 7 6 22 12 12 . 9 Robot Miss Streak 6 | . 6 3 3 2 4 . 5 Penetration Max 1 | . . . . . . . 1 Secondary Targets 6 | . 1 . 2 . 1 . 2 Max Gunslinging Chain 1 | . 1 . 1 . 1 . 1 Shots Hit Robots 473 | 5 58 30 144 76 70 . 90 Core Hits 223 | 2 22 19 61 25 49 . 45 Critical Kills . | . . . . . . . . Critical Parts Destroyed 3 | . 1 . . . . . 2 Critical Strikes 12 | . 1 . . . 2 . 9 Burn 6 | . . . . . 2 . 4 Destroy 3 | . 1 . . . . . 2 Sever 3 | . . . . . . . 3 Melee Attacks 23 | . . . . . . . 23 Impact . | . . . . . . . . Slashing 23 | . . . . . . . 23 Piercing . | . . . . . . . . Sneak Attacks . | . . . . . . . . Combat Hostiles . | . . . . . . . . Follow-up Attacks 4 | . . . . . . . 4 Damage Inflicted 9372 | 64 678 469 2365 1108 2143 . 2545 Guns 6554 | 64 592 207 1625 1107 1137 . 1822 Cannons 1243 | . 86 260 655 . 218 . 24 Explosions 927 | . . . . . 788 . 139 Melee 505 | . . . . . . . 505 Ramming 64 | . . 2 6 1 . . 55 Kinetic 3967 | 42 340 207 1625 1107 361 . 285 Thermal 3728 | 22 338 260 734 . 813 . 1561 Explosive 890 | . . . . . 751 . 139 Electromagnetic 218 | . . . . . 218 . . Impact . | . . . . . . . . Slashing 505 | . . . . . . . 505 Piercing . | . . . . . . . . Highest Corruption 5 | . . 2 2 2 5 3 2 Average Corruption 2 | . . 1 2 2 2 1 1 Corruption Purged 7 | . . . . . 2 3 2 Corruption Blocked . | . . . . . . . . Effects 42 | . . 5 25 5 5 1 1 Message Errors 14 | . . 2 11 1 . . . Matter Fused 12 | . . 2 5 2 3 . . Heat Flow Errors 7 | . . . 3 1 1 1 1 Energy Discharges 2 | . . . 2 . . . . Data Loss (minor) 4 | . . 1 1 1 1 . . Data Loss (major) 1 | . . . 1 . . . . Misfires 1 | . . . 1 . . . . Alerts 1 | . . . 1 . . . . Overload Shots . | . . . . . . . . Overflow Damage 11 | . . . 3 . 8 . . Projectiles 3 | . . . 3 . . . . Explosions 8 | . . . . . 8 . . Melee . | . . . . . . . . Knockbacks . | . . . . . . . . Impact . | . . . . . . . . Kinetic . | . . . . . . . . Secondary . | . . . . . . . . Self-Inflicted Damage 37 | . . . . . 37 . . Shots 2 | . . . . . 2 . . Rammed 11 | . . . 3 . . . 8 Targets Rammed 14 | . . 1 3 1 1 . 8 Kicked . | . . . . . . . . Crushed 3 | . . 1 . 1 1 . . Highest Temperature 406 | . 154 330 240 156 199 134 406 Average Temperature 73 | . 57 96 71 30 72 79 74 Received Heat Transfer 1707 | . 282 75 315 63 315 . 657 Siege Activations . | . . . . . . . . Robots Corrupted . | . . . . . . . . Combat Hostiles . | . . . . . . . . Parts Fried 1 | . . . . . 1 . . Impact Corruptions . | . . . . . . . . Robots Melted 1 | . . . . . . . 1 Combat Hostiles 1 | . . . . . . . 1 Parts Melted 7 | . . . . . 1 . 6 Heat Transferred 6743 | 50 760 555 1443 . 1382 . 2553 Parts Sabotaged . | . . . . . . . . Parts Stolen . | . . . . . . . . Parts Stripped . | . . . . . . . . Power Chain Reactions 1 | . . . . . 1 . . Alert | -11 -10 -9 -9 -9 -7 -7 -7 ------- Run | Yrd Mat Mat Sto Rec Fac Was Fac Peak Influence 1093 | 5 200 264 523 289 402 140 1093 Initial 203 | . 3 20 61 203 . 140 98 Average 305 | 3 82 110 269 186 137 140 595 Maximum Alert Level 3 | . 1 1 2 1 2 . 3 Low Security (%) 41 | 100 89 86 30 51 60 100 3 Level 1 31 | . 10 13 44 48 38 . 26 Level 2 16 | . . . 24 . . . 34 Level 3 10 | . . . . . . . 34 Level 4 . | . . . . . . . . Level 5 . | . . . . . . . . High Security . | . . . . . . . . Max Security . | . . . . . . . . Squads Dispatched 22 | . . 2 6 . 3 . 11 Investigation 9 | . . 1 1 . . . 7 Extermination 3 | . . . . . 1 . 2 Reinforcement 3 | . . 1 1 . 1 . . Assault 1 | . . . . . . . 1 Garrison 6 | . . . 4 . 1 . 1 Intercept . | . . . . . . . . Searches Triggered . | . . . . . . . . Construction Impeded 2 | . . 1 . . 1 . . Haulers Reinforced . | . . . . . . . . Active Scanning Responses . | . . . . . . . . Cargo Convoy Interrupts . | . . . . . . . . Stealth | -11 -10 -9 -9 -9 -7 -7 -7 --------- Run | Yrd Mat Mat Sto Rec Fac Was Fac Distress Signals 9 | . 1 . 3 . 3 . 2 Communications Jammed . | . . . . . . . . Distress Signals . | . . . . . . . . Times Spotted 150 | . 13 11 38 3 26 . 59 Peak Tracking Total 7 | . 4 3 4 2 5 . 7 Tactical Retreats 5 | . . . 5 . . . . Traps | -11 -10 -9 -9 -9 -7 -7 -7 ------- Run | Yrd Mat Mat Sto Rec Fac Was Fac Traps Triggered 12 | . . 4 2 . 1 . 5 Indirectly . | . . . . . . . . Trap Hack Attempts . | . . . . . . . . Triggered . | . . . . . . . . Disarmed . | . . . . . . . . Reprogrammed . | . . . . . . . . Reused . | . . . . . . . . Traps Extracted . | . . . . . . . . Installed . | . . . . . . . . Triggered . | . . . . . . . . Machines | -11 -10 -9 -9 -9 -7 -7 -7 ---------- Run | Yrd Mat Mat Sto Rec Fac Was Fac Machines Disabled 5 | . . 1 2 . 2 . . Max in Single Turn 1 | . . 1 1 . 1 . . Garrison Access 1 | . . . . . . . 1 Machines Repaired . | . . . . . . . . Machines Dismantled 5 | . . . 5 . . . . Machines Sabotaged . | . . . . . . . . Overloaded Fab Kills . | . . . . . . . . Hacking | -11 -10 -9 -9 -9 -7 -7 -7 --------- Run | Yrd Mat Mat Sto Rec Fac Was Fac Machines Accessed 38 | . 3 3 9 9 3 . 11 Terminals 20 | . 2 1 6 6 1 . 4 Fabricators 3 | . . . . . 1 . 2 Repair Stations 4 | . . 1 2 . . . 1 Recycling Units 7 | . 1 . 1 3 1 . 1 Scanalyzers 3 | . . 1 . . . . 2 Garrison Access 1 | . . . . . . . 1 Total Hacks 90 | . 7 11 17 13 4 . 38 Successful 48 | . 3 6 10 8 3 . 18 Failed 42 | . 4 5 7 5 1 . 20 Catastrophic 5 | . . . 1 1 1 . 2 Database Lockouts . | . . . . . . . . Manual 7 | . . . 5 . . . 2 Terminals 41 | . 6 3 8 9 1 . 14 Fabricators 8 | . . . . . 2 . 6 Repair Stations 12 | . . 2 6 . . . 4 Recycling Units 10 | . 1 . 3 4 1 . 1 Scanalyzers 17 | . . 6 . . . . 11 Garrison Access 2 | . . . . . . . 2 Terminal Hacks 15 | . 2 2 3 5 . . 3 Part Schematic 1 | . . . . . . . 1 Robot Schematic 1 | . . . . 1 . . . Prototype ID Bank 2 | . . 1 1 . . . . Terminal Index 1 | . . . . 1 . . . Alert Level 1 | . . . . 1 . . . Locate Traps 2 | . . . 1 . . . 1 Investigation Status 2 | . 1 . . . . . 1 Hauler Manifests 2 | . . 1 . 1 . . . Zone Layout 3 | . 1 . 1 1 . . . Fabricator Hacks 6 | . . . . . 2 . 4 Load Schematic 2 | . . . . . 1 . 1 Build 4 | . . . . . 1 . 3 Repair Station Hacks 7 | . . 1 5 . . . 1 Scan Component 5 | . . 1 3 . . . 1 Repair 2 | . . . 2 . . . . Recycling Unit Hacks 8 | . 1 . 2 3 1 . 1 Report Inventory 7 | . 1 . 1 3 1 . 1 Retrieve Components 1 | . . . 1 . . . . Scanalyzer 11 | . . 3 . . . . 8 Insert Component 4 | . . 1 . . . . 3 Analyze 7 | . . 2 . . . . 5 Garrison Access Hacks 1 | . . . . . . . 1 Seal Access 1 | . . . . . . . 1 Unauthorized Hacks . | . . . . . . . . Terminals . | . . . . . . . . Fabricators . | . . . . . . . . Repair Stations . | . . . . . . . . Recycling Units . | . . . . . . . . Scanalyzers . | . . . . . . . . Garrison Access . | . . . . . . . . Data Cores Recovered . | . . . . . . . . Used . | . . . . . . . . Hacking Detections 25 | . 2 2 8 4 1 . 8 Full Trace Events 8 | . . 1 2 . . . 5 Feedback Events . | . . . . . . . . Feedback Blocked . | . . . . . . . . Robot Schematics Acquired 1 | . . . . 1 . . . Robots Built . | . . . . . . . . Authchips . | . . . . . . . . Time . | . . . . . . . . Total Robot Build Rating . | . . . . . . . . Part Schematics Acquired 4 | . . 1 . . . . 3 Parts Built 4 | . . . . . 2 . 2 Authchips 1 | . . . . . 1 . . Time 321 | . . . . . 73 . 248 Total Part Build Rating 16 | . . . . . 6 . 10 Parts Repaired 2 | . . . 2 . . . . Time 70 | . . . 70 . . . . Parts Recycled . | . . . . . . . . Recycled Matter . | . . . . . . . . Retrieved Matter . | . . . . . . . . Retrieved Components 10 | . . . 10 . . . . Parts Scanalyzed 3 | . . 1 . . . . 2 Part Schematics Acquired 3 | . . 1 . . . . 2 Parts Damaged . | . . . . . . . . Bothacking | -11 -10 -9 -9 -9 -7 -7 -7 ------------ Run | Yrd Mat Mat Sto Rec Fac Was Fac Used RIF Installer . | . . . . . . . . Robots Hacked . | . . . . . . . . Non-combat . | . . . . . . . . Combat . | . . . . . . . . Robot Hacks Applied . | . . . . . . . . Relay Couplers Released . | . . . . . . . . Fabnet Peak Effective % . | . . . . . . . . Robots Rewired . | . . . . . . . . Allies Hacked . | . . . . . . . . Hacks Repelled . | . . . . . . . . Allies | -11 -10 -9 -9 -9 -7 -7 -7 -------- Run | Yrd Mat Mat Sto Rec Fac Was Fac Total Allies 20 | . . . . . . 20 . Largest Group 20 | . . . . . . 20 19 Highest-Rated Group 489 | . . . . . . 489 458 Highest-Rated Ally 35 | . . . . . . 35 35 Total Orders . | . . . . . . . . Ally Attacks 255 | . . . . . . . 255 Total Damage 3971 | . . . . . . . 3971 Kills 35 | . . . . . . . 35 Allies Corrupted 1 | . . . . . . . 1 Allies Melted . | . . . . . . . . Intel | -11 -10 -9 -9 -9 -7 -7 -7 ------- Run | Yrd Mat Mat Sto Rec Fac Was Fac Robot Analysis Total . | . . . . . . . . Derelict Logs Recovered . | . . . . . . . . Drone Launches . | . . . . . . . . Drone Recoveries . | . . . . . . . . Exploration | -11 -10 -9 -9 -9 -7 -7 -7 ------------- Run | Yrd Mat Mat Sto Rec Fac Was Fac Turns Passed 7189 | 71 458 720 1737 827 940 276 2160 Spaces Moved 3563 | 36 349 322 716 413 408 142 1177 Core 12 | 9 . 2 1 . . . . Treads 3168 | 27 56 281 664 413 408 142 1177 Legs 58 | . . 7 51 . . . . Wheels . | . . . . . . . . Hover 325 | . 293 32 . . . . . Flight . | . . . . . . . . Fastest Speed 50 | 50 56 56 160 160 145 145 145 Average Speed 153 | 132 73 172 162 160 174 155 156 Slowest Speed 600 | 160 160 400 600 160 240 225 160 Overloaded Moves . | . . . . . . . . Propulsion Burnouts . | . . . . . . . . Robots Hopped . | . . . . . . . . Cave-ins Triggered . | . . . . . . . . Exploration Rate (%) 52 | 4 66 38 87 90 16 79 38 Regions Visited 7 Branch Regions 2 Pre-discovered Areas . | . . . . . . . . Known Exits Taken 4 | . 1 1 1 1 . . . Unknown Exits Taken 1 | 1 . . . . . . . Scrap Searched . | . . . . . . . . Spaces Dug . | . . . . . . . . Terrain Destroyed 35 | . . . . . 30 . 5 Melee . | . . . . . . . . Projectile . | . . . . . . . . AOE 35 | . . . . . 30 . 5 Terrain Rammed . | . . . . . . . . Walls Destroyed . | . . . . . . . . Machines Disabled . | . . . . . . . . Actions | -11 -10 -9 -9 -9 -7 -7 -7 --------- Run | Yrd Mat Mat Sto Rec Fac Was Fac Total 4484 | 52 450 424 1001 482 530 198 1347 Wait 243 | . 20 34 89 13 12 39 36 Move 3557 | 35 348 321 715 412 408 141 1177 Hop . | . . . . . . . . Pick Up 72 | 7 6 8 14 1 15 5 16 Fast Attach 39 | 1 5 12 11 1 4 2 3 Attach 34 | 5 3 2 1 . 11 1 11 Detach 4 | . 1 . . . 1 . 2 Swap 50 | 1 7 4 15 2 9 3 9 Drop 66 | . 8 11 15 3 12 7 10 Fire 358 | 3 52 31 109 49 57 . 57 Melee 18 | . . . . . . . 18 Ram . | . . . . . . . . Kick . | . . . . . . . . Crush 14 | . . 1 3 1 1 . 8 Escape Stasis . | . . . . . . . . Rewire . | . . . . . . . . Trap . | . . . . . . . . Miscellaneous 29 | . . . 29 . . . . Route ------- -11/Scrapyard -10/Materials (discovered 2 exits: *Mat / [*Min]) -9/Materials (discovered 2 exits: *Min / *Sto) -9/Storage (discovered 2 exits: [*Mat] / *Rec) -9/Recycling -7/Factory -7/Waste -7/Factory (discovered 1 exit: *Fac) History --------- Turn | Location | Event 11 | -11/Scrapyard | Discovered new exit (range 16) 72 | -11/Scrapyard | Entered Materials 310 | -10/Materials | Build established: Mutant 344 | -10/Materials | Core integrity fell below 50% 413 | -10/Materials | Discovered new exit (range 12) 487 | -10/Materials | Discovered new exit (range 16) 509 | -10/Materials | Identified exit to Materials 530 | -10/Materials | Entered another Materials area 530 | -9/Materials | Evolved 2 slots: Utility x2 627 | -9/Materials | Build established: Scavenger-Mutant 1091 | -9/Materials | Discovered new exit (range 6) 1097 | -9/Materials | Identified exit to Mines 1105 | -9/Materials | Discovered new exit (range 16) 1155 | -9/Materials | Identified exit to Storage 1250 | -9/Materials | Entered Storage 1468 | -9/Storage | Build established: Mutant 1508 | -9/Storage | Garrison activated, responded to threat 2553 | -9/Storage | Discovered new exit (range 7) 2687 | -9/Storage | Repaired Insulated Plating 2696 | -9/Storage | Repaired Rocket Launcher 2865 | -9/Storage | Garrison activated, responded to threat 2938 | -9/Storage | Discovered new exit (range 13) 2984 | -9/Storage | Identified exit to Recycling 2987 | -9/Storage | Entered Recycling 3464 | -9/Recycling | Discovered new exit (range 6) 3470 | -9/Recycling | Identified exit to Factory 3814 | -9/Recycling | Entered Factory 3814 | -7/Factory | Evolved 4 slots: Utility x4 3922 | -7/Factory | Build established: Scavenger-Mutant 4165 | -7/Factory | Fabricated Insulated Plating? 4246 | -7/Factory | Build established: Mutant 4375 | -7/Factory | Garrison activated, responded to threat 4408 | -7/Factory | Destroyed 7 combat bots 4754 | -7/Factory | Sucked down chute 4754 | -7/Factory | Entered Waste 4755 | -7/Waste | Joined by Warlord forces that had cleared the area 4968 | -7/Waste | Build established: Scavenger-Mutant 5004 | -7/Waste | Discovered new exit (range 13) 5028 | -7/Waste | Identified exit to Factory 5030 | -7/Waste | Entered Factory 5030 | -7/Factory | Accompanied by 19 allies 5172 | -7/Factory | Fabricated Drone Bay? 6555 | -7/Factory | Garrison activated, responded to threat 6621 | -7/Factory | Lost 5 allies 6630 | -7/Factory | First assault squad dispatched 6756 | -7/Factory | Core integrity fell below 50% 6766 | -7/Factory | Core integrity fell below 20% 6792 | -7/Factory | Lost 6 parts (1p1n3u1w) 7055 | -7/Factory | Build established: Mutant 7083 | -7/Factory | Discovered new exit (range 9) 7098 | -7/Factory | Identified exit to Factory 7162 | -7/Factory | Fabricated Imp. Heavy Armor Plating? 7190 | -7/Factory | Destroyed by G-47 Trooper with Particle Gun Last Messages --------------- Uploading Disruptor Cannon schematic... Loaded successfully: Disruptor Cannon Rating: 6 Time: 106 Initiate build sequence. >>Build Building Disruptor Cannon... ETC: 106 07178_ ALERT: Unauthorized use of fabrication network. Dispatching investigation squad. 07187_ Slug penetrates G-47 Trooper. 07187_ T-07 Excavator suffers critical hit (Destroy). 07187_ Destroyed Wheel. 07190_ Slug penetrates G-47 Trooper. 07190_ G-47 Trooper destroyed. 07190_ T-07 Excavator suffers critical hit (Destroy). 07190_ Destroyed Wheel. Map ----- +----------------------------------------------------+ | # + """ #??????????????????????? | | " + # """ #??????????????????????? | | " !/ # # "" #??????????????????????? | | !/ # # """#??????????????????????? | | ######## # S"#??????????????????????? | | ???????# # #??????????????????????? | | ???????# ##############??????????????????????? | | ???????# #??#######??????????????????????????? | | ???????# #? ???????????????????????????? | | ???????# #? ""????????????????????????????? | | ???????# # """"????????????????????????????? | | ???????# # """"" ""????????????????????????? | | ???????# + ????????????????????? | | ???????# # ????????????????????? | | ???????# # ????????????????????? | | ???????# +? ?????????????????????? | | ???????# == =#?################??????????????????? | | ???????# %#??????# #??????????????????? | | ?####### ! =######## """" !#??????????????????? | | = # ""F" #??????????????????? | | # #??????????????????? | | * + """ """ #??????????????????? | | !%= # """ """ #??????????????????? | | ! # """ """ #??????????????????? | | ####+########## # #######????????????? | | ??????????????# #####@##### # ##???????????? | | ??????????????# =%[ ##??????????? | | ??????????????# g g % #??????????? | | ??????????????# !<* ###########? | | ??????????????# =% # !#? | | ??????????????# # ?? | | ??????????????# #####;##### # """ #? | | ??????????????# #?? ???# # """"" #? | | ??????????????# # ??# + """"" #? | | ??????????????# # !! ???# # #? | | ??????????????# # !! ???# t # ] #? | | ??????????????# # ???# # = #? | | ??????????????? ?# ???# ##+#####+##? | | ????????????????????# ???# ##### #?? | | ????????????????????# ???# #?? | | ????????????????????#######???# #?? | | ??????????????????????????????# #?? | | ??????????????????????????????# """"" """"" #?? | | ??????????????????????????????# """"" """"" #?? | | ??????????????????????????????# """ """ #?? | | ??????????????????????????????# #?? | | ??????????????????????????????# #?? | | ??????????????????????????????# #?? | | ??????????????????????????????# #?? | | ??????????????????????????????##################?? | +----------------------------------------------------+ Best States ------------- Heat Dissipation 62 Coolant Potential 50 Energy Generation 21 Energy Capacity 325 Matter Stores 300 Matter Capacity 300 Sight Range 16 Robot Scan Range 14 Terrain Scan Density 10 Armor Coverage 375 Resistance: EM 15 Evasion (%) 53 Targeting Accuracy 12 Recoil Reduction 2 Particle Charging 15 Authchip Count 1 Item Schematics ----------------- Insulated Plating | -9/Materials | Scanalyzed Disruptor Cannon | -7/Factory | Hacked Lyr. Light Armor Plating | -7/Factory | Scanalyzed Adv. Treads | -7/Factory | Scanalyzed Robot Schematics ------------------ O-16 Technician | -9/Recycling | Hacked Fabricated ------------ Insulated Plating | x2 | -7/Factory | Authchip Drone Bay | x1 | -7/Factory | Preloaded Imp. Heavy Armor Plating | x1 | -7/Factory | Preloaded Alien Tech Used ----------------- None Achievements -------------- \\IAMDERELICT Challenges ------------ None Game ------ Seed ChargeHybridWings Manual? 0 Play Time 02:45:57 Cumulative 152.4 hours Start 2024.03.12 @ 15:58:13 End 2024.03.12 @ 20:51:25 Sessions 1 Manual Loads 0 Difficulty Rogue Special Mode None Game No. 70 Rogue 67 Adventurer 3 Explorer 0 Win Type - Total 0 Types 0/0/0/0/0/0/0/0/0 Lore% 23 Gallery% 43 Achievement% 29 Wizard Run 0 Options --------- Layout 2 ASCII 0 Keyboard 0 Movement Mouse Keybinds 0 Fullscreen 2 Font 24/Smallcaps Map View 50x44 Zoom Use 0% Tactical HUD 1 Map Filters NONE Filters NONE Steam 1 RUN: 93770a29-4b90-44b1-90bf-44781c820f77